[Event "53rd Mar Del Plata Open 2024"]
[Site "Mar Del Plata"]
[Date "2024.03.25"]
[Round "3.9"]
[White "Unhold, Valentin"]
[Black "Kiselev, Vitalii"]
[Result "1/2-1/2"]
[ECO "A53"]
[WhiteElo "2146"]
[BlackElo "2519"]
[Annotator "TA"]
[PlyCount "121"]
[EventDate "2024.03.23"]
[EventType "swiss"]
[EventCountry "ARG"]
[SourceTitle "playchess.com"]
[Source "ChessBase"]
[SourceQuality "1"]
[TimeControl "5400+30"]

{[%evp 18,121,62,60,58,39,67,47,75,67,84,56,73,41,52,39,39,35,41,30,31,37,39,33,70,31,45,38,38,37,41,29,30,13,10,10,0,0,6,0,6,2,6,0,0,0,0,0,0,0,0,0,0,0,0,0,0,0,0,0,0,0,0,0,0,0,0,0,0,0,0,0,0,0,0,0,0,0,0,0,0,0,0,0,0,0,0,0,0,0,0,0,8,0,0,0,0,0,0,0,0,0,6,0,0,0]} 1. d4 {[%emt 0:00:03]} Nf6 {[%emt 0:02:12]} 2. c4 {[%emt 0:00:10]} d6 {[%emt 0:00:23]} 3. Nf3 {[%emt 0:00:10]} Bg4 {[%emt 0:01:02]} 4. Nc3 {[%emt 0:01:13]} Bxf3 {[%emt 0:01:05]} 5. exf3 {[%emt 0:00:12]} c6 {[%emt 0:00:31]} 6. Be2 {[%emt 0:03:54] A53: Old Indian Defence without Nf3.} g6 {[%emt 0:09:45]} 7. O-O {[%emt 0:03:06]} Bg7 {[%emt 0:00:06]} 8. Re1 {[%emt 0:08:24]} O-O {[%emt 0:00:17]} 9. d5 {[%emt 0:04:45]} Nbd7 {[%emt 0:00:22]} 10. Be3 {[%emt 0:03:01]} Re8 {[%emt 0:02:08]} 11. Qd2 $146 {[%emt 0:07:34]} ({Predecessor:} 11. f4 Qc7 12. Rc1 a6 13. g4 Reb8 14. Bf3 c5 15. a4 Qd8 16. Bd2 Ne8 17. Qe2 {1-0 Moreno Trujillo,A (2499)-Suarez Garcia,C (2408) ESP-ch 80th Linares 2015 (9)}) 11... a5 {[%emt 0:02:03]} 12. Rab1 {[%emt 0:04:30]} Nc5 {[%emt 0:02:46]} 13. b3 {[%emt 0:11:11]} Nfd7 {[%emt 0:06:14]} 14. Rec1 {[%emt 0:07:44]} Qc7 {[%emt 0:00:50]} 15. Bd1 {[%emt 0:04:21]} Nb6 {[%emt 0:03:29]} 16. Ne4 {[%emt 0:01:54]} Nbd7 {[%emt 0:03:17]} 17. a3 {[%emt 0:02:48]} Nxe4 {[%emt 0:10:07]} 18. fxe4 {[%emt 0:00:09]} c5 {[%emt 0:00:06]} 19. a4 {[%emt 0:06:56]} e6 {[%emt 0:00:40]} 20. Bc2 {[%emt 0:04:09]} exd5 {[%emt 0:09:05]} 21. exd5 {[%emt 0:00:32]} Re7 {[%emt 0:01:30]} 22. Re1 {[%emt 0:05:28]} Rae8 {[%emt 0:00:07]} 23. h3 {[%emt 0:01:54]} Qd8 {[%emt 0:04:30]} 24. g3 {[%emt 0:03:47]} Bd4 {[%emt 0:07:36]} 25. Bxd4 {[%emt 0:02:47]} (25. Bh6 {keeps more tension.} Nf6 26. Kg2 b6 27. Bf4) 25... Rxe1+ {[%emt 0:03:21]} 26. Rxe1 {[%emt 0:00:07]} Rxe1+ {[%emt 0:00:04]} 27. Qxe1 {[%emt 0:00:04]} cxd4 {[%emt 0:00:02]} 28. Qd2 {[%emt 0:04:23]} Qb6 {[%emt 0:02:43]} 29. Kg2 {[%emt 0:00:16]} Ne5 {[%emt 0:02:26]} 30. f4 {[%emt 0:01:57]} Nd7 {[%emt 0:00:03]} 31. g4 {[%emt 0:00:25]} h6 {[%emt 0:02:10]} 32. h4 {[%emt 0:00:43]} Qd8 {[%emt 0:00:27]} 33. g5 {[%emt 0:02:27]} hxg5 {[%emt 0:00:02]} 34. hxg5 {[%emt 0:00:02]} Qe7 {[%emt 0:00:06]} 35. Qxd4 {[%emt 0:00:55]} (35. Qxa5 $2 {perishes.} Qe2+ 36. Kg3 Qxc2 $19) 35... Qe1 {[%emt 0:02:46]} 36. Qf2 {[%emt 0:01:09]} Qc3 {[%emt 0:00:20]} 37. Qe2 {[%emt 0:01:08]} Kf8 {[%emt 0:03:34]} 38. Qf2 {[%emt 0:01:19]} Qb2 {[%emt 0:02:15]} 39. f5 {[%emt 0:01:00]} Qc1 {[%emt 0:01:24]} 40. fxg6 {[%emt 0:00:06]} Qxg5+ {[%emt 0:00:00]} 41. Qg3 {[%emt 0:00:29]} Qd2+ {[%emt 0:03:35]} 42. Qf2 {[%emt 0:00:11]} Qxf2+ {[%emt 0:00:29]} 43. Kxf2 {[%emt 0:00:08]} fxg6 {[%emt 0:00:11]} 44. Bxg6 {[%emt 0:00:03]} Kg7 {[%emt 0:00:03]} 45. Bc2 {[%emt 0:00:39]} Kf6 {[%emt 0:00:04]} 46. Ke3 {[%emt 0:00:12]} Ke5 {[%emt 0:00:06]} 47. Kd3 {[%emt 0:00:33]} Nc5+ {[%emt 0:01:20]} 48. Kc3 {[%emt 0:00:06]} Na6 {[%emt 0:00:04]} 49. Bh7 {[%emt 0:00:27]} b6 {[%emt 0:00:44]} 50. Bc2 {[%emt 0:01:30]} Kf4 {[%emt 0:00:39]} 51. Kd2 {[%emt 0:01:27]} Nc5 {[%emt 0:00:10]} 52. Kc3 {[%emt 0:00:21]} Ke3 {[%emt 0:04:36]} 53. Bg6 {[%emt 0:00:53]} Na6 {[%emt 0:00:43]} 54. Bf5 {[%emt 0:00:35]} Nb4 {[%emt 0:01:01]} 55. Bg6 {[%emt 0:00:17]} Na6 {[%emt 0:00:22]} 56. Bf5 {[%emt 0:00:06]} Kf4 {[%emt 0:01:55]} 57. Bg6 {[%emt 0:00:27]} Ke5 {[%emt 0:00:29]} 58. Bc2 {[%emt 0:00:14]} Nb8 {[%emt 0:00:31]} 59. Bg6 {[%emt 0:01:00]} Nd7 {[%emt 0:00:51]} 60. Bb1 {[%emt 0:00:35]} Nc5 {[%emt 0:00:45]} 61. Bc2 {[%emt 0:00:27]} 1/2-1/2

[Event "53rd Mar Del Plata Open 2024"]
[Site "Mar Del Plata"]
[Date "2024.03.25"]
[Round "3.10"]
[White "Melian, Juan Sebastian"]
[Black "Flores, Diego"]
[Result "0-1"]
[ECO "B40"]
[WhiteElo "2157"]
[BlackElo "2530"]
[Annotator "TA"]
[PlyCount "116"]
[EventDate "2024.03.23"]
[EventType "swiss"]
[EventCountry "ARG"]
[SourceTitle "playchess.com"]
[Source "ChessBase"]
[SourceQuality "1"]
[TimeControl "5400+30"]

{[%evp 9,116,14,31,12,25,15,31,11,17,3,8,6,5,2,18,19,21,-46,-51,-52,-44,-74,-68,-73,-63,-66,-76,-64,-44,-68,-69,-83,-79,-83,-84,-86,-83,-87,-79,-87,-75,-78,-80,-83,-82,-92,-78,-89,-84,-89,-89,-89,-89,-89,-89,-125,-89,-140,-145,-150,-138,-157,-147,-142,-141,-144,-132,-135,-126,-126,-77,-85,-91,-75,-63,-136,-135,-120,-112,-126,-124,-162,-30,-41,0,0,0,0,0,0,0,-82,-84,-84,-81,-80,-80,-80,-86,-117,-153,-1902,-1843,-1913,-1804,-1955,-1991,-1999,-1877]} 1. e4 {[%emt 0:03:46]} c5 {[%emt 0:00:56]} 2. Nf3 {[%emt 0:00:09]} e6 {[%emt 0:00:45]} 3. c3 {[%emt 0:00:24]} Nf6 {[%emt 0:00:09]} 4. Bd3 {[%emt 0:00:11]} Nc6 {[%emt 0:03:18]} 5. Bc2 {[%emt 0:00:36]} b6 {[%emt 0:09:35]} 6. O-O {[%emt 0:02:17]} Bb7 {[%emt 0:03:02]} 7. Re1 {[%emt 0:01:12]} Rc8 {[%emt 0:02:54]} 8. a3 {[%emt 0:03:37] White is slightly better.} Qc7 {[%emt 0:15:09]} 9. d4 {[%emt 0:13:23]} cxd4 {[%emt 0:00:23]} 10. cxd4 {[%emt 0:00:15]} Nb4 $1 {[%emt 0:00:15]} 11. Nc3 {[%emt 0:15:55]} Nxc2 {[%emt 0:00:30]} 12. Qxc2 {[%emt 0:00:02]} d5 {[%emt 0:01:08]} 13. exd5 {[%emt 0:08:44]} (13. Ne5 $1 $11 a6 14. f3) 13... Nxd5 $15 {[%emt 0:01:26]} 14. Bd2 {[%emt 0:12:37]} Be7 {[%emt 0:08:18]} 15. Qa4+ {[%emt 0:03:44]} Qc6 {[%emt 0:03:43]} 16. Qxc6+ {[%emt 0:00:34]} Bxc6 {[%emt 0:00:07]} 17. Ne5 {[%emt 0:00:44]} Bb7 {[%emt 0:08:28]} 18. Nxd5 {[%emt 0:00:02]} Bxd5 {[%emt 0:00:09]} 19. Rec1 {[%emt 0:00:16]} O-O {[%emt 0:00:54]} 20. Bb4 {[%emt 0:03:36]} Bg5 {[%emt 0:00:47] This pair of bishops is nice.} 21. Rxc8 {[%emt 0:00:19]} Rxc8 {[%emt 0:00:05]} 22. Bc3 {[%emt 0:00:06]} Be7 {[%emt 0:03:53]} 23. f3 {[%emt 0:02:58]} f6 {[%emt 0:00:20]} 24. Ng4 {[%emt 0:03:23]} Kf7 {[%emt 0:00:30]} 25. Ne3 {[%emt 0:00:24]} Bb3 {[%emt 0:00:09]} 26. Kf2 {[%emt 0:00:12]} a5 {[%emt 0:01:25]} 27. g3 {[%emt 0:01:58]} Bd8 {[%emt 0:02:06]} 28. Ke2 {[%emt 0:03:17]} b5 {[%emt 0:00:30]} 29. f4 {[%emt 0:02:37]} g6 {[%emt 0:02:50]} 30. Kd3 {[%emt 0:00:59]} Bb6 {[%emt 0:01:10]} 31. Re1 {[%emt 0:06:25]} Rd8 {[%emt 0:03:03]} 32. Nc2 {[%emt 0:00:29]} h5 {[%emt 0:01:01] Black is more active.} 33. h4 {[%emt 0:02:37]} (33. Ne3 $142) 33... Bxc2+ $17 {[%emt 0:05:35]} 34. Kxc2 {[%emt 0:00:02]} Bxd4 {[%emt 0:00:06]} 35. Bxa5 {[%emt 0:01:59][%mdl 4096] Endgame. [#] KRB-KRB} Rc8+ {[%emt 0:00:12]} 36. Bc3 {[%emt 0:00:58]} Bf2 $1 {[%emt 0:00:13][%csl LRe1,LRg3]} 37. Rd1 {[%emt 0:00:20]} Bxg3 {[%emt 0:00:24]} 38. Rd7+ {[%emt 0:00:23]} Ke8 {[%emt 0:01:39]} 39. Rg7 {[%emt 0:01:01]} Bxf4 {[%emt 0:00:29]} ({Black should play} 39... Rc4 40. Rxg6 Bxh4) 40. Rxg6 {[%emt 0:00:41]} Ke7 {[%emt 0:00:10]} 41. Rg7+ {[%emt 0:02:28]} Kd6 {[%emt 0:00:08]} 42. Kd3 {[%emt 0:02:46]} (42. Rb7 $15) 42... e5 {[%emt 0:01:53]} 43. Rb7 {[%emt 0:02:20] [#]} Bg3 $1 {[%emt 0:01:10]} 44. Rxb5 {[%emt 0:00:56]} Bxh4 {[%emt 0:00:16]} 45. Ke4 {[%emt 0:00:44]} Rg8 {[%emt 0:05:28]} ({Black should try} 45... Rc4+ $19 46. Kf5 Rf4+ 47. Kg6 Bg3 48. Kxh5 e4) 46. Kf5 $11 {[%emt 0:00:01]} Bg5 {[%emt 0:00:50]} 47. Bb4+ {[%emt 0:00:32]} Kc6 {[%emt 0:00:10]} 48. Rc5+ {[%emt 0:00:15]} Kb6 {[%emt 0:00:04]} 49. a4 {[%emt 0:00:34]} h4 {[%emt 0:00:16]} 50. a5+ {[%emt 0:00:07]} (50. Rb5+ $1 $11 {keeps the balance.} Kc6 51. Rc5+ Kb6 52. Rb5+ Kc6 53. Rc5+ Kd7 54. Rd5+ Kc6 55. Rc5+) 50... Ka6 $17 {[%emt 0:00:26] ...h3 would now be deadly.} 51. Rc6+ {[%emt 0:00:32]} Kb5 {[%emt 0:00:12]} 52. Rb6+ {[%emt 0:00:05]} Kc4 {[%emt 0:00:04]} 53. b3+ {[%emt 0:00:40]} Kd3 $1 {[%emt 0:01:17]} ({Of course not} 53... Kxb3 54. Be7+ Ka4 55. Bxf6 $11) 54. Rd6+ {[%emt 0:01:46]} Kc2 {[%emt 0:00:37][%cal Oh4h3] aiming for ...h3!} 55. Be1 $2 {[%emt 0:00:25] Loses the game.} (55. Rc6+ $17 Kb2 (55... Kxb3 56. Be1 $17) 56. Bc3+ Ka3 (56... Kxb3 57. Be1 $17) 57. Kg4) 55... h3 $19 {[%emt 0:00:25][%cal Oh3h2] Black is clearly winning.} ({Less strong is} 55... Kxb3 56. a6 $15) 56. Rc6+ {[%emt 0:00:33]} Kd1 {[%emt 0:00:39][%cal Oh3h2] ( -> ...h2!)} (56... Kxb3 57. Rc3+ Ka4 58. Rxh3 $11) 57. Bg3 {[%emt 0:00:02] [#]} Bf4 $1 {[%emt 0:01:32][%mdl 512]} 58. Rd6+ {[%emt 0:00:47]} (58. Ke4 Rxg3) 58... Ke2 {[%emt 0:00:38] Weighted Error Value: White=0.28 (precise) /Black=0.09 (flawless) .  Loses game:     	White=1     	---        Mistake:       	White=4     	Black=2      Inaccurate:     	White=3     	Black=1      OK:         	White=18    	Black=11     Best:        	White=3     	Black=12     Strong:       	---       	Black=3} ({Weaker is} 58... Bd2 59. Bh2 $17) 0-1

[Event "53rd Mar Del Plata Open 2024"]
[Site "Mar Del Plata"]
[Date "2024.03.26"]
[Round "4.1"]
[White "Christiansen, Johan-Sebastian"]
[Black "Perez Candelas, Andres Eloy"]
[Result "1-0"]
[ECO "C18"]
[WhiteElo "2633"]
[BlackElo "2246"]
[Annotator "TA"]
[PlyCount "63"]
[EventDate "2024.03.23"]
[EventType "swiss"]
[EventCountry "ARG"]
[SourceTitle "playchess.com"]
[Source "ChessBase"]
[SourceQuality "1"]
[TimeControl "5400+30"]

{[%evp 17,63,0,18,0,43,36,31,23,28,22,129,107,104,101,179,167,185,179,177,174,170,170,167,172,606,607,588,578,1131,1110,987,472,443,437,423,337,320,312,389,349,233,396,706,724,670,581,797,790]} 1. e4 {[%emt 0:00:05]} e6 {[%emt 0:00:06]} 2. d4 {[%emt 0:00:07]} d5 {[%emt 0:00:04]} 3. Nc3 {[%emt 0:00:24]} Bb4 {[%emt 0:00:25]} 4. e5 {[%emt 0:00:48]} c5 {[%emt 0:00:12]} 5. a3 {[%emt 0:00:04]} Bxc3+ {[%emt 0:00:06]} 6. bxc3 {[%emt 0:00:06]} Ne7 {[%emt 0:00:28]} 7. Qg4 {[%emt 0:01:05]} Qc7 {[%emt 0:00:49]} 8. Bd3 {[%emt 0:00:06]} c4 {[%emt 0:07:53]} 9. Be2 {[%emt 0:00:06]} O-O {[%emt 0:00:43]} 10. Nf3 {[%emt 0:03:55]} f6 {[%emt 0:07:17]} 11. exf6 {[%emt 0:27:59]} Rxf6 {[%emt 0:00:54][%cal Oe6e5]} 12. Bg5 {[%emt 0:01:37] White is slightly better.} Rf8 {[%emt 0:17:56]} (12... e5 $6 13. Qg3 Re6 14. Nxe5 $16 (14. dxe5 Nbc6 $16)) 13. Qg3 {[%emt 0:02:56] Black is weak on the dark squares} Qa5 {[%emt 0:20:51] [#]} (13... Qxg3 $11 {keeps the balance.} 14. hxg3 Ng6) 14. Nh4 $1 $40 {[%emt 0:01:12][%mdl 128] White has strong attack.} (14. Bxe7 $2 Qxc3+ 15. Nd2 Qxa1+ $19) 14... Nbc6 {[%emt 0:12:07][%cal Oe6e5]} 15. O-O {[%emt 0:11:42]} Rf7 {[%emt 0:14:03]} (15... Kh8 $16 {might work better.}) 16. Rfe1 $18 {[%emt 0:05:01]} Bd7 {[%emt 0:08:01]} 17. Bh5 {[%emt 0:06:48]} g6 {[%emt 0:03:41]} 18. Bg4 {[%emt 0:00:32][%cal Bh5g4,Bg4f3,Bf3d5][%mdl 32]} Nf5 {[%emt 0:02:10]} 19. Nxf5 {[%emt 0:02:16]} exf5 {[%emt 0:00:24]} 20. Bf3 {[%emt 0:00:01] [#] Strongly threatening Qd6.} Re8 $2 {[%emt 0:01:02]} (20... f4 21. Bxf4 Ne7) 21. Rxe8+ {[%emt 0:04:53]} Bxe8 {[%emt 0:00:03]} 22. Re1 {[%emt 0:00:06]} Bd7 {[%emt 0:00:11]} 23. Qd6 {[%emt 0:00:24]} Qxc3 {[%emt 0:00:29]} 24. Kf1 {[%emt 0:00:05]} (24. Rd1 $142 Kg7 25. Bxd5 (25. Qxd5 Qxa3 $18) 25... Qxc2 26. Rc1) 24... Qxd4 {[%emt 0:01:25]} 25. Bxd5 {[%emt 0:01:03]} (25. Qxd5 h5 26. Rd1 Qg7 $18) 25... Kg7 {[%emt 0:00:06]} 26. Be3 {[%emt 0:06:51] A strong pair of Bishops.} Qf6 {[%emt 0:00:59]} 27. Qf4 {[%emt 0:00:02]} g5 {[%emt 0:01:00]} 28. Qxc4 {[%emt 0:03:58][%cal Oe3g5] Black must now prevent Bxg5!} ({Don't take} 28. Qxg5+ Qxg5 29. Bxg5 Rf8 30. Bxc4 Bc8 $18) 28... f4 {[%emt 0:00:21]} 29. Bd2 {[%emt 0:00:25][%cal Od2c3] And now Bc3! would win.} Re7 $2 {[%emt 0:00:35]} (29... Nd4 30. a4 (30. Bxf7 Bb5 $18) 30... f3) 30. Bc3 {[%emt 0:01:16] White is clearly winning.} Ne5 {[%emt 0:00:13]} 31. Qe4 {[%emt 0:01:52]} Bb5+ {[%emt 0:00:42]} 32. Kg1 {[%emt 0:00:01] White took control after the opening.   Weighted Error Value: White=0.27 (precise) /Black=0.52.  Mistake:       	---       	Black=4      Inaccurate:     	---       	Black=1      OK:         	White=12    	Black=8      Best:        	White=2     	Black=1      Strong:       	White=1     	---} 1-0

[Event "53rd Mar Del Plata Open 2024"]
[Site "Mar Del Plata"]
[Date "2024.03.26"]
[Round "4.2"]
[White "Villegas, Franco"]
[Black "Felgaer, Ruben"]
[Result "1/2-1/2"]
[ECO "B50"]
[WhiteElo "2328"]
[BlackElo "2565"]
[Annotator "TA"]
[PlyCount "64"]
[EventDate "2024.03.23"]
[EventType "swiss"]
[EventCountry "ARG"]
[SourceTitle "playchess.com"]
[Source "ChessBase"]
[SourceQuality "1"]
[TimeControl "5400+30"]

{[%evp 17,64,13,11,16,16,15,14,8,26,19,24,14,33,27,26,22,21,19,34,30,33,25,28,17,22,12,16,10,11,11,0,8,29,24,27,21,33,26,16,10,19,7,14,7,23,10,23,27,31]} 1. e4 {[%emt 0:00:07]} c5 {[%emt 0:00:12]} 2. Nf3 {[%emt 0:00:22]} d6 {[%emt 0:00:42]} 3. c3 {[%emt 0:01:12]} Nf6 {[%emt 0:00:48]} 4. Be2 {[%emt 0:00:07]} Nbd7 {[%emt 0:06:27]} 5. d3 {[%emt 0:00:33]} b6 {[%emt 0:00:20]} 6. O-O {[%emt 0:00:30]} Bb7 {[%emt 0:00:05]} 7. Re1 {[%emt 0:00:25]} e6 {[%emt 0:03:29]} 8. Bf1 {[%emt 0:01:25]} Be7 {[%emt 0:09:40]} 9. Nbd2 {[%emt 0:00:36]} O-O {[%emt 0:00:09]} 10. d4 {[%emt 0:00:38]} Qc7 {[%emt 0:00:27]} 11. Bd3 {[%emt 0:03:04]} Rfd8 {[%emt 0:05:19]} 12. Qe2 {[%emt 0:02:10] The position is equal.} cxd4 {[%emt 0:00:19]} 13. cxd4 {[%emt 0:09:47]} Rac8 {[%emt 0:04:26]} 14. b3 {[%emt 0:05:32]} Nf8 {[%emt 0:04:41]} 15. Bb2 {[%emt 0:01:16]} Qb8 {[%emt 0:03:24]} 16. a4 {[%emt 0:19:53]} Rc7 {[%emt 0:03:32]} 17. Rec1 {[%emt 0:08:06]} Rxc1+ {[%emt 0:03:58]} 18. Rxc1 {[%emt 0:03:11]} Rc8 {[%emt 0:00:13]} 19. Rxc8 {[%emt 0:00:47]} Qxc8 {[%emt 0:00:30]} 20. Ne1 {[%emt 0:00:29]} d5 {[%emt 0:11:29]} 21. e5 {[%emt 0:01:17]} N6d7 {[%emt 0:00:04]} 22. Nc2 {[%emt 0:00:06]} Ba6 {[%emt 0:02:02] [#] aiming for ...Qxc2.} 23. Nb1 {[%emt 0:00:34]} Bxd3 {[%emt 0:01:21]} 24. Qxd3 {[%emt 0:00:11]} a5 {[%emt 0:14:10]} 25. Ba3 {[%emt 0:01:43]} Ng6 {[%emt 0:00:33]} 26. g3 {[%emt 0:02:32]} Qc6 {[%emt 0:06:04]} 27. Kf1 {[%emt 0:07:01]} f6 {[%emt 0:00:47]} 28. f4 {[%emt 0:00:37]} fxe5 {[%emt 0:03:11]} 29. fxe5 {[%emt 0:00:06]} Bxa3 {[%emt 0:01:21]} 30. Nbxa3 {[%emt 0:00:17]} Ne7 {[%emt 0:00:06]} 31. Ke2 {[%emt 0:01:05]} Nf5 {[%emt 0:00:42]} 32. Kd2 {[%emt 0:00:36]} h6 {[%emt 0:15:59] Weighted Error Value: White=0.03 (flawless) /Black=0.06 (flawless) .  OK:         	White=6     	Black=10     Best:        	White=1     	---} 1/2-1/2

[Event "53rd Mar Del Plata Open 2024"]
[Site "Mar Del Plata"]
[Date "2024.03.26"]
[Round "4.3"]
[White "Schnaider, Ilan"]
[Black "Tristan, Leonardo"]
[Result "1/2-1/2"]
[ECO "C65"]
[WhiteElo "2314"]
[BlackElo "2521"]
[Annotator "TA"]
[PlyCount "126"]
[EventDate "2024.03.23"]
[EventType "swiss"]
[EventCountry "ARG"]
[SourceTitle "playchess.com"]
[Source "ChessBase"]
[SourceQuality "1"]
[TimeControl "5400+30"]

{[%evp 10,126,12,-43,-35,-43,-47,-42,-39,-40,-39,-99,-89,-111,-81,-105,-34,-62,-68,-62,-50,-54,-48,-56,-47,-60,-57,-72,-66,-56,-56,-79,-81,-95,-33,-29,-33,-20,-27,-29,-27,-31,0,0,0,-29,-37,-54,-63,-81,-80,-112,-129,-137,-113,-116,-125,-210,-196,-183,-23,-36,-22,-113,-118,-221,-215,-222,-179,-213,-224,-213,-206,-189,-148,-154,-172,-191,-8,-8,8,0,0,-8,-8,-8,-8,-8,0,0,0,0,0,0,0,0,0,0,0,0,8,8,8,8,8,8,8,8,8,8,8,8,8,0,8,0,0,-8,-8]} 1. e4 {[%emt 0:00:03]} e5 {[%emt 0:00:16]} 2. Nf3 {[%emt 0:00:07]} Nc6 {[%emt 0:00:06]} 3. Nc3 {[%emt 0:01:06]} Nf6 {[%emt 0:00:07]} 4. Bb5 {[%emt 0:01:04]} Bd6 {[%emt 0:00:07]} 5. O-O {[%emt 0:02:30]} O-O {[%emt 0:00:17]} 6. d4 {[%emt 0:03:16]} ({White should play} 6. d3 $11) 6... exd4 $15 {[%emt 0:02:34]} 7. Nxd4 {[%emt 0:00:11]} Nxd4 {[%emt 0:00:09]} 8. Qxd4 {[%emt 0:00:10]} Re8 {[%emt 0:00:09] Black is slightly better.} 9. Re1 {[%emt 0:17:31]} Be5 {[%emt 0:13:58]} 10. Qd3 {[%emt 0:01:44]} (10. Qd1 $15) 10... c6 $17 {[%emt 0:00:26]} 11. Ba4 {[%emt 0:05:12]} d5 {[%emt 0:16:28]} 12. Bg5 {[%emt 0:08:21] [#]} d4 {[%emt 0:24:55]} (12... b5 $1 $17 {[%cal Rb5a4]} 13. Bb3 a5) 13. Bxf6 {[%emt 0:12:39]} Qxf6 {[%emt 0:08:19]} 14. Ne2 {[%emt 0:00:28] White is weak on the dark squares} a5 {[%emt 0:04:59]} 15. a3 {[%emt 0:03:52]} Bc7 {[%emt 0:05:34]} 16. Bb3 {[%emt 0:04:24]} a4 {[%emt 0:01:22]} 17. Ba2 {[%emt 0:00:19]} Qe5 {[%emt 0:03:46][%csl LRe4,LRh2]} 18. Ng3 {[%emt 0:03:30][%cal Of2f4]} Be6 {[%emt 0:04:15]} 19. Bxe6 {[%emt 0:06:04]} Rxe6 {[%emt 0:00:05]} 20. Rf1 {[%emt 0:00:54]} Rf6 {[%emt 0:01:51]} 21. Rad1 {[%emt 0:00:13]} h5 {[%emt 0:02:11]} (21... Rd8 $17 22. Rfe1 g6) 22. Qxd4 $15 {[%emt 0:03:43]} h4 {[%emt 0:00:05]} 23. Qxe5 {[%emt 0:00:45]} Bxe5 {[%emt 0:00:05]} 24. Nf5 {[%emt 0:00:38]} Bxb2 {[%emt 0:00:06]} 25. Rd3 {[%emt 0:02:13][%cal Of1b1]} Re6 {[%emt 0:00:54]} 26. Rb1 $1 {[%emt 0:01:40]} Bf6 $36 {[%emt 0:00:06][%mdl 2048] Black is pushing.} 27. f3 {[%emt 0:02:54]} b5 {[%emt 0:00:39]} 28. Ne3 {[%emt 0:00:31]} Rd8 {[%emt 0:01:28]} 29. Rxd8+ {[%emt 0:05:48]} Bxd8 {[%emt 0:00:05][%mdl 4096] Endgame. KRB-KRN} 30. Kf2 {[%emt 0:00:39]} Rd6 {[%emt 0:03:38]} 31. Ke2 {[%emt 0:02:17] Wards off Rd2+} Ba5 {[%emt 0:01:19]} 32. Rd1 {[%emt 0:01:14] Repels Rd2+} Rxd1 {[%emt 0:01:24]} 33. Nxd1 $17 {[%emt 0:03:26] KB-KN} (33. Kxd1 $17 Bc7 34. Nf5) 33... Bc7 $19 {[%emt 0:04:24]} 34. c4 {[%emt 0:01:53]} bxc4 {[%emt 0:00:34]} (34... Bxh2 35. cxb5 cxb5 36. Nc3 $15) ({Black should try} 34... Bd6 $19 35. Nc3 (35. cxb5 $2 cxb5 36. Nc3 Bxa3 $19) 35... Bxa3 (35... bxc4 36. Nxa4 Bxh2 37. Nb6 $11) 36. cxb5 cxb5 37. Nxb5 Bd6) 35. Nb2 $11 {[%emt 0:00:24][%csl LRa4,LRc4]} Bxh2 {[%emt 0:00:26]} 36. Nxc4 {[%emt 0:00:20]} (36. Nxa4 $11 {remains equal.} Bd6 37. Nb2) 36... Kh7 $17 {[%emt 0:00:18]} 37. Ke3 {[%emt 0:01:09]} (37. Nb2 $17 {was necessary.}) 37... Kh6 {[%emt 0:00:33]} 38. f4 {[%emt 0:06:18]} g5 {[%emt 0:00:36]} 39. fxg5+ {[%emt 0:00:00]} Kxg5 {[%emt 0:00:05] [#] Threatens to win with ...Kg4.} 40. Kf3 {[%emt 0:00:00]} f6 {[%emt 0:00:17]} 41. Nb6 {[%emt 0:00:00]} Bg1 {[%emt 0:00:07]} 42. Nc4 {[%emt 0:00:49]} Bc5 {[%emt 0:00:57]} 43. Nb2 {[%emt 0:00:27]} Bd4 $2 {[%emt 0:01:06]} ({Don't play} 43... Bxa3 44. Nxa4 Bd6 45. Nb2 $17) (43... Bb6 $19 {White must now prevent ...Ba7.} 44. Nc4 Bd4) 44. Nxa4 $11 {[%emt 0:00:47] The position is equal.} Kg6 {[%emt 0:00:50] And now ...Kg5 would win.} (44... Kh5 $5 45. Kf4 $8 Be5+ 46. Kf5 Bd4 $11) 45. Ke2 {[%emt 0:00:05]} Kg5 {[%emt 0:00:10]} 46. Kf3 {[%emt 0:00:27]} f5 {[%emt 0:00:25]} (46... Kh5 $5 47. Kf4 $8 Be5+ 48. Kf5 Bd4 $11) 47. e5 {[%emt 0:00:33]} Bxe5 {[%emt 0:00:55] Hoping for ...Bd4.} 48. Nb6 $1 {[%emt 0:00:06]} Bc7 {[%emt 0:00:24]} 49. Nc4 {[%emt 0:00:19]} Kf6 {[%emt 0:00:11]} 50. a4 {[%emt 0:00:06]} Ke6 {[%emt 0:00:14]} 51. a5 {[%emt 0:00:04]} Kd7 {[%emt 0:00:36]} 52. a6 {[%emt 0:00:25] a7 is the strong threat.} Kc8 {[%emt 0:00:05]} 53. Ne3 {[%emt 0:00:31]} f4 {[%emt 0:01:23]} 54. Nf5 {[%emt 0:00:03]} (54. a7 $5 Kb7 $8 (54... fxe3 $2 {loses.} 55. a8=Q+ Kd7 56. Qa7 $18) 55. Nf5 $11) 54... c5 {[%emt 0:00:36]} 55. Nxh4 {[%emt 0:00:40]} Kb8 {[%emt 0:00:30]} 56. Ke4 {[%emt 0:00:18]} Ka7 {[%emt 0:00:22]} 57. Kd5 {[%emt 0:00:04]} Bb6 {[%emt 0:00:19]} 58. Ng6 {[%emt 0:00:17]} Kxa6 {[%emt 0:00:04]} 59. Kc4 {[%emt 0:00:13]} Kb7 {[%emt 0:00:13]} 60. Nxf4 {[%emt 0:00:04]} Kc6 {[%emt 0:00:03]} 61. g4 {[%emt 0:00:24]} Bd8 {[%emt 0:00:18]} 62. Ne6 {[%emt 0:00:06]} Be7 {[%emt 0:00:03]} 63. Nxc5 {[%emt 0:00:21]} Bxc5 {[%emt 0:00:05] Whites escaped into a draw.   Weighted Error Value: White=0.13 (very precise) /Black=0.17 (very precise) .  Missed win:     	---       	Black=1      Mistake:       	White=4     	Black=3      Inaccurate:     	White=3     	Black=1      OK:         	White=30    	Black=33     Best:        	White=4     	Black=1      Strong:       	White=2     	---} 1/2-1/2